[Event "9th Holuj-Radzikowska 2019"]
[Site "Wroclaw"]
[Date "2019.12.11"]
[Round "5"]
[White "Houska, Jovanka"]
[Black "Sliwicka, Alicja"]
[Result "0-1"]
[ECO "A46"]
[WhiteElo "2412"]
[BlackElo "2264"]
[Annotator "NA"]
[PlyCount "104"]
[EventDate "2019.12.06"]
[EventType "team-tourn"]
[EventCountry "POL"]
[SourceTitle "playchess.com"]
[Source "ChessBase"]
[SourceQuality "1"]
[TimeControl "40/5400+30:1800+30"]

1. d4 Nf6 2. Nf3 d6 3. g3 Nbd7 4. Bg2 e5 5. c4 g6 6. Nc3 Bg7 7. O-O O-O 8. e3 c6 9. a4 a5 10. b3 exd4 11. Nxd4 Nc5 $11 12. h3 Qb6 13. Ba3 Nfd7 14. Ra2 Re8 15. Kh2 Nb8 16. Rd2 Nba6 17. Nce2 Nb4 18. Qb1 Bd7 19. Rfd1 Rad8 20. Nf4 Bc8 21. e4 Qc7 22. Bb2 Be5 23. Nfe2 Qe7 24. Bc3 Bg7 25. f3 d5 26. exd5 cxd5 27. cxd5 Rxd5 28. Nf4 Rdd8 29. Nb5 Bxc3 30. Rxd8 Rxd8 31. Nxc3 Bf5 32. Rxd8+ Qxd8 33. Qb2 Qd4 34. Nfe2 Qf6 35. f4 Nc2 36. g4 Bd3 37. Qc1 Nxb3 38. Qd1 Bxe2 39. Nxe2 Ncd4 40. Bxb7 Nxe2 41. Qxb3 Qxf4+ 42. Kg2 Qd4 43. Kf3 Nc3 44. Ba6 Nxa4 45. Bc4 Qf6+ 46. Ke2 Nc5 47. Qb5 Qe5+ 48. Kd1 a4 49. Kc2 Kg7 50. h4 a3 51. g5 Qd4 52. Qb4 a2 0-1

[Event "9th Holuj-Radzikowska 2019"]
[Site "Wroclaw"]
[Date "2019.12.11"]
[Round "5"]
[White "Cyfka, Karina"]
[Black "Arabidze, Meri"]
[Result "1/2-1/2"]
[ECO "D35"]
[WhiteElo "2410"]
[BlackElo "2435"]
[Annotator "NA"]
[PlyCount "60"]
[EventDate "2019.12.06"]
[EventType "team-tourn"]
[EventCountry "POL"]
[SourceTitle "playchess.com"]
[Source "ChessBase"]
[SourceQuality "1"]
[TimeControl "40/5400+30:1800+30"]

1. d4 {[%emt 0:00:00]} d5 {[%emt 0:00:00]} 2. c4 {[%emt 0:00:00]} e6 {[%emt 0:00:00]} 3. Nc3 {[%emt 0:00:22]} Nf6 {[%emt 0:00:00]} 4. cxd5 {[%emt 0:00:12]} exd5 {[%emt 0:00:02]} 5. Bg5 {[%emt 0:00:41]} c6 {[%emt 0:00:37]} 6. e3 {[%emt 0:00:28]} Nbd7 {[%emt 0:00:41]} 7. Bd3 {[%emt 0:01:24]} Be7 {[%emt 0:00:51]} 8. Qc2 {[%emt 0:00:41]} O-O {[%emt 0:02:02]} 9. Nf3 {[%emt 0:02:06]} Re8 {[%emt 0:01:28]} 10. O-O {[%emt 0:00:20]} Nf8 {[%emt 0:01:30]} 11. h3 {[%emt 0:00:59]} Nh5 {[%emt 0:07:27]} 12. Bxe7 {[%emt 0:02:44]} Qxe7 {[%emt 0:00:14]} 13. Rab1 {[%emt 0:02:08]} g6 $14 {[%emt 0:10:45]} 14. b4 {[%emt 0:03:42]} a6 {[%emt 0:00:13]} 15. a4 {[%emt 0:00:19]} Be6 {[%emt 0:09:57]} 16. b5 {[%emt 0:04:38]} axb5 {[%emt 0:02:20]} 17. axb5 {[%emt 0:00:16]} c5 {[%emt 0:00:10]} 18. dxc5 {[%emt 0:02:15]} Qxc5 {[%emt 0:00:05]} 19. Nd4 {[%emt 0:05:00]} Rec8 {[%emt 0:03:14]} 20. Rfc1 {[%emt 0:02:31]} Qd6 {[%emt 0:03:11]} 21. Qd1 {[%emt 0:09:24]} Nd7 {[%emt 0:03:50]} 22. Bf1 {[%emt 0:06:28]} Nb6 {[%emt 0:04:53]} 23. Nce2 {[%emt 0:03:50]} Bd7 {[%emt 0:05:18]} 24. Rxc8+ {[%emt 0:03:18]} Rxc8 {[%emt 0:00:25]} 25. Rc1 {[%emt 0:02:09]} Rxc1 {[%emt 0:06:35]} 26. Qxc1 {[%emt 0:00:55]} Nf6 {[%emt 0:00:31]} 27. Nc3 {[%emt 0:02:25]} Qc5 {[%emt 0:09:17]} 28. Qa1 {[%emt 0:00:19]} Bc8 {[%emt 0:02:06]} 29. Nb3 {[%emt 0:02:31]} Qb4 {[%emt 0:04:32]} 30. Nd4 {[%emt 0:01:05]} Qc5 {[%emt 0:00:45]} 1/2-1/2

[Event "9th Holuj-Radzikowska 2019"]
[Site "Wroclaw"]
[Date "2019.12.11"]
[Round "5"]
[White "Zawadzka, Jolanta"]
[Black "Zatonskih, Anna"]
[Result "1/2-1/2"]
[ECO "C43"]
[WhiteElo "2400"]
[BlackElo "2420"]
[Annotator "NA"]
[PlyCount "97"]
[EventDate "2019.12.06"]
[EventType "team-tourn"]
[EventCountry "POL"]
[SourceTitle "playchess.com"]
[Source "ChessBase"]
[SourceQuality "1"]
[TimeControl "40/5400+30:1800+30"]

1. e4 {[%emt 0:00:00]} e5 {[%emt 0:00:00]} 2. Nf3 {[%emt 0:00:00]} Nf6 {[%emt 0:00:00]} 3. d4 {[%emt 0:00:00]} Nxe4 {[%emt 0:01:35]} 4. Bd3 {[%emt 0:00:07]} d5 {[%emt 0:01:20]} 5. Nxe5 {[%emt 0:00:21]} Nd7 {[%emt 0:02:04]} 6. Nxd7 {[%emt 0:00:12]} Bxd7 {[%emt 0:00:20]} 7. O-O {[%emt 0:00:08]} Bd6 {[%emt 0:09:43]} 8. Nc3 $11 {[%emt 0:00:20]} Nxc3 {[%emt 0:02:01]} 9. bxc3 {[%emt 0:00:07]} O-O {[%emt 0:05:13]} 10. Qh5 {[%emt 0:02:07]} f5 {[%emt 0:00:13]} 11. Re1 {[%emt 0:00:46]} Qf6 {[%emt 0:25:01]} 12. Qf3 {[%emt 0:00:32]} Bc6 {[%emt 0:04:55]} 13. Bf4 {[%emt 0:06:07]} g6 {[%emt 0:00:51]} 14. Be5 {[%emt 0:15:59]} Bxe5 {[%emt 0:02:10]} 15. Rxe5 {[%emt 0:01:10]} Rae8 {[%emt 0:00:31]} 16. Rae1 {[%emt 0:04:51]} Rxe5 {[%emt 0:00:17]} 17. Rxe5 {[%emt 0:00:11]} Qf7 {[%emt 0:01:55]} 18. h4 {[%emt 0:12:42]} Re8 {[%emt 0:03:45]} 19. Qf4 {[%emt 0:01:33]} Rxe5 {[%emt 0:08:14]} 20. Qxe5 {[%emt 0:00:06]} h5 {[%emt 0:00:52]} 21. Kh2 {[%emt 0:02:49]} Kf8 {[%emt 0:11:23]} 22. Kh3 {[%emt 0:15:46]} Qe7 {[%emt 0:02:17]} 23. Qh8+ {[%emt 0:05:52]} Kf7 {[%emt 0:00:02]} 24. c4 {[%emt 0:01:31]} Qf6 {[%emt 0:03:07]} 25. Qc8 {[%emt 0:04:17]} Qxd4 {[%emt 0:00:44]} 26. Qxc7+ {[%emt 0:00:07]} Ke8 {[%emt 0:04:20]} 27. cxd5 {[%emt 0:05:48]} Qxd5 {[%emt 0:01:03]} 28. f3 {[%emt 0:00:47]} a6 {[%emt 0:03:32]} 29. a3 {[%emt 0:01:11]} Bd7 {[%emt 0:04:02]} 30. Kg3 {[%emt 0:00:26]} Ke7 {[%emt 0:00:45]} 31. Bc4 {[%emt 0:01:41]} Qd4 {[%emt 0:00:47]} 32. Bb3 {[%emt 0:03:21]} Qe3 {[%emt 0:01:08]} 33. Kh2 {[%emt 0:01:48]} Qd4 {[%emt 0:01:10]} 34. Kg3 {[%emt 0:05:39]} Qe3 {[%emt 0:00:16]} 35. Qc4 {[%emt 0:00:49]} Qe1+ {[%emt 0:00:44]} 36. Kh2 {[%emt 0:00:07]} Be6 {[%emt 0:00:40]} 37. Qc7+ {[%emt 0:01:08]} Bd7 {[%emt 0:00:14]} 38. Qc5+ {[%emt 0:00:23]} Kd8 {[%emt 0:00:52]} 39. Qd4 {[%emt 0:01:38]} Ke7 {[%emt 0:00:19]} 40. Qg7+ {[%emt 0:00:00]} Kd8 {[%emt 0:00:00]} 41. Qd4 {[%emt 0:09:21]} Ke7 {[%emt 0:06:50]} 42. Bd5 {[%emt 0:03:22]} b6 {[%emt 0:03:04]} 43. c4 {[%emt 0:04:17]} a5 {[%emt 0:01:42]} 44. Qf4 {[%emt 0:07:03]} Be6 {[%emt 0:06:17]} 45. Bc6 {[%emt 0:01:35]} Kf6 {[%emt 0:06:14]} 46. Qg5+ {[%emt 0:00:36]} Kf7 {[%emt 0:00:15]} 47. Qf4 {[%emt 0:03:52]} Kf6 {[%emt 0:00:06]} 48. Qg5+ {[%emt 0:00:53]} Kf7 {[%emt 0:00:07]} 49. Qf4 {[%emt 0:00:09]} 1/2-1/2

[Event "9th Holuj-Radzikowska 2019"]
[Site "Wroclaw"]
[Date "2019.12.11"]
[Round "5"]
[White "Badelka, Olga"]
[Black "Socko, Monika"]
[Result "0-1"]
[ECO "A18"]
[WhiteElo "2399"]
[BlackElo "2407"]
[Annotator "NA"]
[PlyCount "74"]
[EventDate "2019.12.06"]
[EventType "team-tourn"]
[EventCountry "POL"]
[SourceTitle "playchess.com"]
[Source "ChessBase"]
[SourceQuality "1"]
[TimeControl "40/5400+30:1800+30"]

1. c4 Nf6 2. Nc3 e6 3. e4 d5 4. e5 d4 5. exf6 dxc3 6. bxc3 Qxf6 7. d4 e5 8. Nf3 Nc6 9. Bg5 Qg6 10. d5 Nb8 11. h4 e4 12. Nd4 Bd6 13. Be3 $11 Nd7 14. h5 Qf6 15. Qc2 Nc5 16. Nb3 Nxb3 17. axb3 O-O 18. Be2 Re8 19. g4 a5 20. g5 Qf5 21. Rh4 b6 22. Bg4 Qe5 23. Bxc8 Raxc8 24. O-O-O Bc5 25. Rg1 c6 26. Bf4 Qe7 27. Rd1 cxd5 28. Rxd5 b5 29. cxb5 Bxf2 30. Qxf2 Rxc3+ 31. Kd1 Qa3 32. Ke2 e3 33. Qe1 Rc1 34. Rd1 Qb2+ 35. Kf3 Rxd1 36. Qxd1 Qf2+ 37. Kg4 e2 0-1

[Event "9th Holuj-Radzikowska 2019"]
[Site "Wroclaw"]
[Date "2019.12.11"]
[Round "5"]
[White "Majdan, Joanna"]
[Black "Bodnaruk, Anastasia"]
[Result "0-1"]
[ECO "B90"]
[WhiteElo "2336"]
[BlackElo "2413"]
[Annotator "NA"]
[PlyCount "88"]
[EventDate "2019.12.06"]
[EventType "team-tourn"]
[EventCountry "POL"]
[SourceTitle "playchess.com"]
[Source "ChessBase"]
[SourceQuality "1"]
[TimeControl "40/5400+30:1800+30"]

1. e4 {[%emt 0:00:00]} c5 {[%emt 0:00:00]} 2. Nf3 {[%emt 0:00:00]} d6 {[%emt 0:00:00]} 3. d4 {[%emt 0:00:00]} cxd4 {[%emt 0:00:00]} 4. Nxd4 {[%emt 0:00:00]} Nf6 {[%emt 0:00:00]} 5. Nc3 {[%emt 0:00:00]} a6 {[%emt 0:00:00]} 6. Be3 {[%emt 0:00:11]} e5 {[%emt 0:01:09]} 7. Nf3 {[%emt 0:00:26]} Qc7 {[%emt 0:07:31]} 8. a4 {[%emt 0:01:51]} Be7 {[%emt 0:00:50]} 9. Be2 {[%emt 0:00:40]} O-O {[%emt 0:01:59]} 10. O-O {[%emt 0:01:22]} Nbd7 {[%emt 0:02:30]} 11. Nd2 {[%emt 0:03:51]} b6 {[%emt 0:06:07]} 12. g4 $14 {[%emt 0:02:01]} Bb7 {[%emt 0:02:44]} 13. g5 {[%emt 0:00:08]} Ne8 {[%emt 0:00:04]} 14. Nc4 {[%emt 0:04:12]} g6 {[%emt 0:14:01]} 15. Nd5 {[%emt 0:06:09]} Bxd5 {[%emt 0:00:27]} 16. Qxd5 {[%emt 0:00:04]} Ng7 {[%emt 0:04:16]} 17. Rfd1 {[%emt 0:08:45]} Ne6 {[%emt 0:24:12]} 18. Nxd6 {[%emt 0:09:21]} Bxd6 {[%emt 0:13:51]} 19. Qxd6 {[%emt 0:00:05]} Qxc2 {[%emt 0:00:12]} 20. Bd3 {[%emt 0:11:50]} Qb3 {[%emt 0:00:30]} 21. Qa3 {[%emt 0:10:32]} Ndc5 {[%emt 0:02:39]} 22. Qxb3 {[%emt 0:00:10]} Nxb3 {[%emt 0:00:01]} 23. Ra3 {[%emt 0:00:42]} Nbd4 {[%emt 0:03:15]} 24. Bc4 {[%emt 0:01:20]} Rad8 {[%emt 0:08:58]} 25. Bd5 {[%emt 0:11:18]} Nc2 {[%emt 0:03:07]} 26. Bxb6 {[%emt 0:03:06]} Nxa3 {[%emt 0:00:37]} 27. Bxd8 {[%emt 0:00:05]} Rxd8 {[%emt 0:00:03]} 28. bxa3 {[%emt 0:00:05]} Nxg5 {[%emt 0:00:55]} 29. Rb1 {[%emt 0:02:12]} Nh3+ {[%emt 0:01:20]} 30. Kf1 {[%emt 0:10:48]} Nf4 {[%emt 0:00:03]} 31. Rb6 {[%emt 0:00:53]} Nxd5 {[%emt 0:00:45]} 32. exd5 {[%emt 0:00:03]} Rxd5 {[%emt 0:00:07]} 33. Rxa6 {[%emt 0:00:04]} Rd3 {[%emt 0:00:44]} 34. Ra8+ {[%emt 0:02:12]} Kg7 {[%emt 0:00:01]} 35. a5 {[%emt 0:00:29]} Rxa3 {[%emt 0:00:03]} 36. a6 {[%emt 0:00:02]} Ra2 {[%emt 0:02:18]} 37. Kg2 {[%emt 0:02:54]} e4 {[%emt 0:00:51]} 38. Kg3 {[%emt 0:00:59]} f5 {[%emt 0:00:12]} 39. h4 {[%emt 0:02:43]} Ra3+ {[%emt 0:02:01]} 40. Kg2 {[%emt 0:00:00]} Ra2 {[%emt 0:00:00]} 41. Kg3 {[%emt 0:01:00]} Ra3+ {[%emt 0:12:55]} 42. Kg2 {[%emt 0:00:05]} Kf6 {[%emt 0:00:25]} 43. a7 {[%emt 0:04:53]} Kg7 {[%emt 0:00:06]} 44. Kf1 {[%emt 0:00:04]} Kh6 {[%emt 0:03:12]} 0-1

[Event "9th Holuj-Radzikowska 2019"]
[Site "Wroclaw"]
[Date "2019.12.12"]
[Round "6"]
[White "Arabidze, Meri"]
[Black "Antolak, Julia"]
[Result "0-1"]
[ECO "A53"]
[WhiteElo "2435"]
[BlackElo "2249"]
[Annotator "ChessBase"]
[PlyCount "100"]
[EventDate "2019.12.06"]
[EventType "team-tourn"]
[EventCountry "POL"]
[SourceTitle "playchess.com"]
[Source "ChessBase"]
[SourceQuality "1"]
[TimeControl "40/5400+30:1800+30"]

1. d4 Nf6 2. c4 d6 3. Nc3 Nbd7 4. Nf3 e5 5. g3 Be7 6. Bg2 c6 7. O-O O-O 8. Qc2 Re8 9. b3 Bf8 10. e4 a6 11. Rd1 Qc7 12. Bb2 b5 13. c5 dxc5 14. dxe5 Nxe5 15. Nxe5 Rxe5 16. Ne2 Re8 17. Bxf6 gxf6 18. Nf4 Bg4 19. f3 Be6 20. Kh1 Red8 21. Nxe6 fxe6 22. Bh3 e5 23. f4 exf4 24. gxf4 Qxf4 25. Rg1+ Kh8 26. Raf1 Rd2 27. Rxf4 Rxc2 28. Rxf6 Bg7 29. Rxc6 Rxa2 30. Bf5 Bd4 31. Rg4 Rg8 32. Rxg8+ Kxg8 33. Bc8 a5 34. Ba6 c4 35. bxc4 b4 36. c5 Rc2 37. Rc8+ Kg7 38. c6 b3 39. Bd3 Rc3 40. c7 Be5 41. Kg2 Bxc7 42. Bb1 h5 43. e5 Bxe5 44. Rxc3 Bxc3 45. Bd3 a4 46. Bc4 Kf6 47. Kf3 Ke5 48. Ke3 Kd6 49. Kd3 Be5 50. h3 Kc5 {Kd4+} 0-1

[Event "9th Holuj-Radzikowska 2019"]
[Site "Wroclaw"]
[Date "2019.12.12"]
[Round "6"]
[White "Zatonskih, Anna"]
[Black "Majdan, Joanna"]
[Result "1/2-1/2"]
[ECO "A43"]
[WhiteElo "2420"]
[BlackElo "2336"]
[Annotator "ChessBase"]
[PlyCount "61"]
[EventDate "2019.12.06"]
[EventType "team-tourn"]
[EventCountry "POL"]
[SourceTitle "playchess.com"]
[Source "ChessBase"]
[SourceQuality "1"]
[TimeControl "40/5400+30:1800+30"]

1. d4 {[%emt 0:00:00]} c5 {[%emt 0:00:00]} 2. d5 {[%emt 0:03:49]} g6 {[%emt 0:00:00]} 3. e4 {[%emt 0:06:41]} Bg7 {[%emt 0:00:10]} 4. Bd3 {[%emt 0:03:01]} d6 {[%emt 0:06:23]} 5. Ne2 {[%emt 0:03:50]} Nf6 {[%emt 0:04:14]} 6. c4 {[%emt 0:02:10]} O-O {[%emt 0:00:10]} 7. O-O {[%emt 0:04:33]} e6 {[%emt 0:03:59]} 8. Nbc3 {[%emt 0:01:19]} exd5 {[%emt 0:00:16]} 9. cxd5 {[%emt 0:12:09]} a6 {[%emt 0:00:50]} 10. a4 {[%emt 0:00:13]} Re8 {[%emt 0:01:02]} 11. Ng3 {[%emt 0:07:51]} h5 {[%emt 0:01:05]} 12. f3 {[%emt 0:02:10]} h4 {[%emt 0:07:42]} 13. Nh1 {[%emt 0:02:52]} h3 {[%emt 0:03:16]} 14. g3 {[%emt 0:03:17]} Qc7 {[%emt 0:03:11]} 15. Re1 {[%emt 0:05:15]} Nbd7 {[%emt 0:06:39]} 16. Nf2 {[%emt 0:00:24]} c4 {[%emt 0:00:23]} 17. Bf1 {[%emt 0:00:32]} Ne5 {[%emt 0:01:33]} 18. Be3 {[%emt 0:03:25]} Qa5 {[%emt 0:08:55]} 19. g4 {[%emt 0:17:02]} Nfd7 {[%emt 0:03:38]} 20. Bxh3 {[%emt 0:00:55]} Nc5 {[%emt 0:00:48]} 21. Bf1 {[%emt 0:00:44]} Qb4 {[%emt 0:02:32]} 22. Rb1 {[%emt 0:02:48]} Bd7 {[%emt 0:04:01]} 23. f4 {[%emt 0:04:47]} Ned3 {[%emt 0:00:42]} 24. Bxd3 {[%emt 0:00:52]} Nxd3 {[%emt 0:01:09]} 25. Nxd3 {[%emt 0:02:18]} cxd3 {[%emt 0:00:08]} 26. Qxd3 {[%emt 0:02:40]} Bxg4 {[%emt 0:00:39]} 27. Bd2 {[%emt 0:01:29]} Qd4+ {[%emt 0:07:10]} 28. Qxd4 {[%emt 0:00:16]} Bxd4+ {[%emt 0:00:04]} 29. Kg2 {[%emt 0:00:29]} Rac8 {[%emt 0:02:46]} 30. Kg3 {[%emt 0:01:48]} Bd7 {[%emt 0:00:07]} 31. Kf3 {[%emt 0:01:44]} 1/2-1/2

[Event "9th Holuj-Radzikowska 2019"]
[Site "Wroclaw"]
[Date "2019.12.12"]
[Round "6"]
[White "Bodnaruk, Anastasia"]
[Black "Cyfka, Karina"]
[Result "1-0"]
[ECO "C55"]
[WhiteElo "2413"]
[BlackElo "2410"]
[Annotator "ChessBase"]
[PlyCount "115"]
[EventDate "2019.12.06"]
[EventType "team-tourn"]
[EventCountry "POL"]
[SourceTitle "playchess.com"]
[Source "ChessBase"]
[SourceQuality "1"]
[TimeControl "40/5400+30:1800+30"]

1. e4 {[%emt 0:00:00]} e5 {[%emt 0:00:00]} 2. Bc4 {[%emt 0:00:00]} Nc6 {[%emt 0:00:19]} 3. Nf3 {[%emt 0:00:00]} Nf6 {[%emt 0:00:31]} 4. d3 {[%emt 0:00:10]} Be7 {[%emt 0:02:21]} 5. O-O {[%emt 0:00:18]} O-O {[%emt 0:00:06]} 6. Re1 {[%emt 0:00:13]} d6 {[%emt 0:00:57]} 7. a4 {[%emt 0:00:33]} Na5 {[%emt 0:04:00]} 8. Ba2 {[%emt 0:00:30]} c5 {[%emt 0:00:24]} 9. c3 {[%emt 0:01:24]} Nc6 {[%emt 0:01:08]} 10. Na3 {[%emt 0:03:51]} Be6 {[%emt 0:05:32]} 11. Nc4 {[%emt 0:01:13]} h6 {[%emt 0:01:52]} 12. Bd2 {[%emt 0:01:06]} a6 {[%emt 0:02:07]} 13. b4 {[%emt 0:12:29]} cxb4 {[%emt 0:14:07]} 14. cxb4 {[%emt 0:00:04]} b5 {[%emt 0:01:18]} 15. axb5 {[%emt 0:05:16]} axb5 {[%emt 0:00:18]} 16. Na5 {[%emt 0:00:06]} Bxa2 {[%emt 0:08:46]} 17. Rxa2 {[%emt 0:02:02]} Qd7 {[%emt 0:00:29]} 18. Qa1 {[%emt 0:12:33]} Rac8 {[%emt 0:08:55]} 19. Nxc6 {[%emt 0:06:03]} Rxc6 {[%emt 0:02:02]} 20. d4 {[%emt 0:02:58]} Bd8 {[%emt 0:04:56]} 21. dxe5 {[%emt 0:03:52]} Ng4 {[%emt 0:00:08]} 22. exd6 {[%emt 0:09:04]} Rxd6 {[%emt 0:13:55]} 23. h3 {[%emt 0:03:08]} Bf6 {[%emt 0:05:37]} 24. e5 {[%emt 0:05:08]} Nxe5 {[%emt 0:00:21]} 25. Rxe5 {[%emt 0:00:15]} Rd3 {[%emt 0:02:34]} 26. Qe1 {[%emt 0:04:57]} Bxe5 {[%emt 0:01:16]} 27. Nxe5 {[%emt 0:03:31]} Qe6 {[%emt 0:01:03]} 28. Nxd3 {[%emt 0:00:18]} Qxa2 {[%emt 0:00:05]} 29. Bc3 {[%emt 0:02:01]} Qc4 {[%emt 0:02:32]} 30. Nc5 {[%emt 0:01:34]} Rd8 {[%emt 0:01:16]} 31. Qe3 {[%emt 0:06:09]} f6 {[%emt 0:04:30]} 32. Kh2 {[%emt 0:03:59]} Kf7 {[%emt 0:01:54]} 33. Qg3 {[%emt 0:01:24]} Qd5 {[%emt 0:05:36]} 34. Qc7+ {[%emt 0:01:47]} Kg6 {[%emt 0:00:06]} 35. Ne6 {[%emt 0:02:40]} Qd6+ {[%emt 0:00:21]} 36. Qxd6 {[%emt 0:00:15]} Rxd6 {[%emt 0:00:01]} 37. Nd4 {[%emt 0:02:09]} Rd5 {[%emt 0:01:21]} 38. g4 {[%emt 0:00:57]} h5 {[%emt 0:01:26]} 39. Kg3 {[%emt 0:00:52]} hxg4 {[%emt 0:00:17]} 40. hxg4 {[%emt 0:00:00]} Kf7 {[%emt 0:00:00]} 41. f4 {[%emt 0:04:13]} g6 {[%emt 0:04:29]} 42. Kf3 {[%emt 0:04:33]} Ke7 {[%emt 0:02:09]} 43. Ke4 {[%emt 0:01:35]} Kd6 {[%emt 0:01:49]} 44. Be1 {[%emt 0:04:48]} f5+ {[%emt 0:01:59]} 45. gxf5 {[%emt 0:00:04]} gxf5+ {[%emt 0:00:08]} 46. Nxf5+ {[%emt 0:00:12]} Ke6 {[%emt 0:00:10]} 47. Nd4+ {[%emt 0:01:17]} Kd6 {[%emt 0:00:16]} 48. Bg3 {[%emt 0:00:33]} Rh5 {[%emt 0:00:06]} 49. f5+ {[%emt 0:00:23]} Kd7 {[%emt 0:00:49]} 50. Kd5 {[%emt 0:02:40]} Rh3 {[%emt 0:02:24]} 51. Be5 {[%emt 0:00:47]} Rd3 {[%emt 0:01:44]} 52. f6 {[%emt 0:05:07]} Rd1 {[%emt 0:00:19]} 53. Bd6 {[%emt 0:00:42]} Rf1 {[%emt 0:00:23]} 54. Be7 {[%emt 0:00:14]} Ke8 {[%emt 0:02:21]} 55. Nxb5 {[%emt 0:00:34]} Rd1+ {[%emt 0:00:36]} 56. Nd4 {[%emt 0:01:24]} Kf7 {[%emt 0:00:14]} 57. b5 {[%emt 0:00:38]} Rb1 {[%emt 0:00:10]} 58. Kc6 {[%emt 0:00:23]} 1-0

[Event "9th Holuj-Radzikowska 2019"]
[Site "Wroclaw"]
[Date "2019.12.12"]
[Round "6"]
[White "Socko, Monika"]
[Black "Houska, Jovanka"]
[Result "1/2-1/2"]
[ECO "D30"]
[WhiteElo "2407"]
[BlackElo "2412"]
[Annotator "ChessBase"]
[PlyCount "95"]
[EventDate "2019.12.06"]
[EventType "team-tourn"]
[EventCountry "POL"]
[SourceTitle "playchess.com"]
[Source "ChessBase"]
[SourceQuality "1"]
[TimeControl "40/5400+30:1800+30"]

1. d4 {[%emt 0:00:00]} d5 {[%emt 0:00:00]} 2. c4 {[%emt 0:00:00]} e6 {[%emt 0:00:07]} 3. Nf3 {[%emt 0:00:00]} Nf6 {[%emt 0:01:01]} 4. g3 {[%emt 0:00:00]} Bb4+ {[%emt 0:00:04]} 5. Nbd2 {[%emt 0:00:04]} O-O {[%emt 0:00:17]} 6. Bg2 {[%emt 0:00:29]} b6 {[%emt 0:01:09]} 7. O-O {[%emt 0:00:09]} Bb7 {[%emt 0:00:09]} 8. a3 {[%emt 0:00:16]} Be7 {[%emt 0:00:58]} 9. b4 {[%emt 0:00:12]} Ne4 {[%emt 0:08:01]} 10. Bb2 {[%emt 0:03:51]} Nd7 {[%emt 0:09:02]} 11. c5 {[%emt 0:08:42]} f5 {[%emt 0:03:04]} 12. Qc2 {[%emt 0:04:00]} c6 {[%emt 0:00:19]} 13. Nxe4 {[%emt 0:10:11]} fxe4 {[%emt 0:00:49]} 14. Nd2 {[%emt 0:00:03]} Bf6 {[%emt 0:05:55]} 15. f3 {[%emt 0:02:10]} bxc5 {[%emt 0:01:48]} 16. bxc5 {[%emt 0:01:31]} e3 {[%emt 0:02:57]} 17. Nb3 {[%emt 0:00:40]} Ba6 {[%emt 0:01:35]} 18. Bc3 {[%emt 0:03:49]} e5 {[%emt 0:02:25]} 19. Bh3 {[%emt 0:08:48]} exd4 {[%emt 0:14:41]} 20. Nxd4 {[%emt 0:00:21]} Nxc5 {[%emt 0:02:03]} 21. Rad1 {[%emt 0:03:10]} Qb6 {[%emt 0:10:51]} 22. Bb4 {[%emt 0:04:19]} Bc4 {[%emt 0:00:11]} 23. Bf5 {[%emt 0:10:24]} g6 {[%emt 0:04:40]} 24. Ne6 {[%emt 0:12:12]} Nxe6 {[%emt 0:04:52]} 25. Bxe6+ {[%emt 0:00:15]} Kh8 {[%emt 0:01:50]} 26. Bxf8 {[%emt 0:00:24]} Rxf8 {[%emt 0:00:04]} 27. Rb1 {[%emt 0:00:55]} Qa6 {[%emt 0:00:17]} 28. Rfe1 {[%emt 0:00:09]} Qxa3 {[%emt 0:06:50]} 29. Rb7 {[%emt 0:00:36]} Qa6 {[%emt 0:01:35]} 30. Reb1 {[%emt 0:01:07]} Bd4 {[%emt 0:03:24]} 31. R7b4 {[%emt 0:00:59]} c5 {[%emt 0:01:52]} 32. Rxc4 {[%emt 0:02:36]} Qxc4 {[%emt 0:00:14]} 33. Qxc4 {[%emt 0:00:04]} dxc4 {[%emt 0:00:03]} 34. Bxc4 {[%emt 0:00:03]} a5 {[%emt 0:00:24]} 35. f4 {[%emt 0:02:33]} a4 {[%emt 0:01:34]} 36. Rb6 {[%emt 0:04:07]} Ra8 {[%emt 0:05:21]} 37. Ra6 {[%emt 0:01:53]} Rxa6 {[%emt 0:00:04]} 38. Bxa6 {[%emt 0:00:03]} Kg7 {[%emt 0:00:04]} 39. Bb5 {[%emt 0:00:12]} a3 {[%emt 0:00:04]} 40. Bc4 {[%emt 0:00:00]} h5 {[%emt 0:00:00]} 41. Kg2 {[%emt 0:01:57]} Bc3 {[%emt 0:05:55]} 42. Kf3 {[%emt 0:00:54]} Bd2 {[%emt 0:00:04]} 43. h3 {[%emt 0:00:57]} Kf6 {[%emt 0:03:13]} 44. g4 {[%emt 0:00:46]} hxg4+ {[%emt 0:00:32]} 45. hxg4 {[%emt 0:00:04]} g5 {[%emt 0:00:06]} 46. Ke4 {[%emt 0:00:13]} Bc1 {[%emt 0:03:22]} 47. Ba2 {[%emt 0:01:01]} Bd2 {[%emt 0:00:17]} 48. Bc4 {[%emt 0:00:04] Ke5+} 1/2-1/2